bitfinex-derivatives/quotes_ETHF0:USTF0_20250817
["timestamp","ask_amount","ask_price","bid_price","bid_amount"]
[1755439677221,1.82828592,4546.8,4546.7,3.20942843]
[1755439678628,1.44018592,4546.8,4546.7,3.20942843]
[1755439680928,1.82828592,4546.8,4546.7,3.20942843]
[1755439690040,2.08888592,4546.8,4546.7,3.20942843]
[1755439690739,1.82828592,4546.8,4546.7,3.20942843]
[1755439691632,2.08888592,4546.8,4546.7,3.20942843]
[1755439703047,1.82828592,4546.8,4546.7,3.20942843]
[1755439704649,2.08418592,4546.8,4546.7,3.20942843]
[1755439705047,1.82828592,4546.8,4546.7,3.20942843]
[1755439706650,3.2078,4547.5,4546.7,2.16602843]
[1755439706845,1.58154542,4548.5,4548.4,0.5847]
[1755439707146,1.206,4548.6,4547.9,0.3669]
[1755439707353,0.7976,4548.5,4548.4,1.76142843]
[1755439707645,0.4084,4547.8,4547.7,0.5847]
[1755439707846,1.206,4547.8,4547.7,2.34612843]
[1755439708048,1.0427,4547.8,4547.7,2.71302843]
[1755439708245,1.206,4548.2,4548.1,0.2549]
[1755439708447,1.206,4548.2,4548.1,2.96452843]
[1755439708847,1.3609,4548.2,4548.1,2.96452843]
[1755439709353,1.3609,4548.2,4548.1,2.17642843]
[1755439709552,1.3609,4548.2,4548.1,2.01292843]
[1755439710553,1.3609,4548.2,4548.1,2.59762843]
[1755439710853,1.3609,4548.2,4548.1,3.20482843]
[1755439711153,1.3609,4548.2,4548.1,0.5813]
[1755439711452,1.3609,4548.2,4548.1,2.34272843]
[1755439712249,1.3609,4548.2,4548.1,2.58302843]
[1755439713348,1.3609,4548.2,4548.1,2.94992843]
[1755439713856,1.3609,4548.2,4548.1,2.34272843]
[1755439714444,1.3609,4548.2,4548.1,2.58302843]
[1755439714848,1.3609,4548.2,4548.1,2.94992843]
[1755439715049,1.3609,4548.2,4548.1,3.20482843]
[1755439716351,1.206,4548.2,4548.1,3.20482843]
[1755439717255,1.3609,4548.2,4548.1,3.20482843]
[1755439719351,0.5717,4548.2,4548.0,1.76142843]
[1755439719557,1.3609,4548.1,4548.0,1.76142843]
[1755439720355,1.3609,4548.1,4548.0,2.07129723]
[1755439721159,1.3609,4548.1,4548.0,2.0712934]
[1755439721361,1.3609,4548.1,4548.0,2.8928934]
[1755439721555,1.3609,4548.1,4548.0,3.5146934]
[1755439721756,1.3609,4548.1,4548.0,2.8928934]
[1755439724260,1.3609,4548.1,4548.0,3.5146934]
[1755439726864,1.3609,4548.1,4548.0,3.20482843]
[1755439727059,3.2078,4548.3,4548.0,2.34612843]
[1755439727368,1.206,4548.2,4548.1,0.5813]
[1755439727669,1.3609,4548.2,4548.1,1.1875]
[1755439728165,1.3609,4548.2,4548.1,1.4262]
[1755439731366,1.206,4548.2,4548.1,0.6887]
[1755439731565,1.3607,4548.2,4548.1,1.1881]
[1755439732259,1.9346754,4548.2,4548.1,1.1881]
[1755439732456,1.9346754,4548.2,4548.1,0.8226]
[1755439732659,1.9346754,4548.2,4548.1,1.1881]
[1755439733365,1.9346754,4548.2,4548.1,1.4268]
[1755439734367,0.4187,4547.7,4547.6,1.1816]
[1755439734564,0.3526,4548.0,4547.6,3.18372843]
[1755439734765,1.0168,4548.1,4548.0,0.5574]
[1755439735057,1.59116239,4548.1,4548.0,1.4223]
[1755439735464,0.57436239,4548.1,4548.0,1.4223]
[1755439735771,0.57436239,4548.1,4548.0,3.18372843]
[1755439736966,1.34566239,4548.1,4548.0,3.18372843]
[1755439737167,1.59116239,4548.1,4548.0,3.18372843]
[1755439739765,0.83126239,4548.1,4548.0,3.18372843]
[1755439740069,0.57436239,4548.1,4548.0,3.18372843]
[1755439740972,1.59116239,4548.1,4548.0,1.4223]
[1755439741265,1.91146239,4548.1,4548.0,3.18372843]
[1755439741671,1.91146239,4548.1,4548.0,2.33882843]
[1755439741968,1.91146239,4548.1,4548.0,2.57952843]
[1755439742170,1.91146239,4548.1,4548.0,2.94502843]
[1755439742366,1.91146239,4548.1,4548.0,3.18372843]
[1755439743066,0.83126239,4548.1,4548.0,3.18372843]
[1755439744263,1.34566239,4548.1,4548.0,3.18372843]
[1755439744470,1.91146239,4548.1,4548.0,0.4177]
[1755439744673,1.91146239,4548.1,4548.0,2.41982843]
[1755439744868,1.91146239,4548.1,4548.0,2.57952843]
[1755439745575,1.91146239,4548.1,4548.0,2.94502843]
[1755439747774,1.91146239,4548.1,4548.0,3.18372843]
[1755439749383,1.15866239,4548.1,4547.7,0.2407]
[1755439749582,1.3371,4547.9,4547.8,2.08012843]
[1755439749878,1.91146239,4547.9,4547.8,2.32082843]
[1755439750184,1.31336239,4547.9,4547.2,0.2587]
[1755439750476,1.0168,4547.3,4547.2,1.1816]
[1755439750670,1.1715,4547.3,4547.2,1.1816]
[1755439750869,1.1715,4547.3,4547.2,1.4223]
[1755439751475,1.0168,4547.3,4547.2,3.18372843]
[1755439752179,0.7713,4547.3,4547.2,3.18372843]
[1755439752679,1.0168,4547.3,4547.2,3.18372843]
[1755439754581,3.5604,4547.8,4547.2,1.76142843]
[1755439754889,1.91221761,4547.7,4547.6,2.57952843]
[1755439755086,1.91221761,4547.7,4547.6,2.94502843]
[1755439756488,1.91221761,4547.7,4547.6,3.18372843]
[1755439756689,1.91221761,4547.7,4547.6,1.4223]
[1755439756890,1.91221761,4547.7,4547.6,2.81822843]
[1755439757491,1.91221761,4547.7,4547.6,3.19642843]
[1755439759190,0.5939,4547.6,4547.0,0.6211]
[1755439759496,1.3394,4547.1,4547.0,0.8105]
[1755439759692,1.91451761,4547.1,4547.0,1.435]
[1755439760492,0.7486,4547.0,4546.6,1.76142843]
[1755439760697,1.3394,4546.7,4546.6,3.19642843]
[1755439762186,3.7986,4546.7,4546.1,0.2429]
[1755439762391,3.7986,4546.7,4546.2,3.19642843]
[1755439762392,1.3394,4546.3,4546.2,3.19642843]
[1755439764798,1.1847,4546.3,4546.2,3.19642843]
[1755439765299,1.34,4546.3,4546.2,3.19642843]
[1755439765696,3.6378,4546.7,4546.6,0.5743]
[1755439765895,4.1944,4546.7,4546.6,3.19642843]
[1755439766394,4.5478,4546.7,4546.6,2.33232843]
[1755439766589,0.2594,4546.1,4546.0,0.4892]
[1755439766799,4.5478,4546.1,4546.0,1.0568]
[1755439767096,4.5478,4546.1,4546.0,0.4106]
[1755439767396,4.5478,4546.1,4546.0,0.5709]
[1755439767588,4.5478,4546.1,4546.0,1.1887]
[1755439767792,4.5478,4546.1,4546.0,0.8105]
[1755439768495,4.5478,4546.1,4546.0,1.1887]
[1755439768898,4.5478,4546.1,4546.0,1.435]
[1755439769093,4.5478,4546.1,4545.1,3.2298]
[1755439769401,1.34,4545.7,4545.6,2.70722843]
[1755439769900,1.34,4545.7,4545.6,3.19642843]
[1755439773905,1.34,4545.7,4545.6,1.435]
[1755439774101,0.7834,4545.7,4545.6,0.1677]
[1755439774304,1.34,4545.7,4545.6,1.1887]
[1755439774998,1.34,4545.7,4545.6,1.435]
[1755439776093,1.1847,4545.6,4545.5,2.08942843]
[1755439776298,1.34,4545.6,4545.5,3.19642843]
[1755439777003,1.34,4545.6,4545.5,1.435]
[1755439777205,1.34,4545.6,4545.5,3.19642843]
[1755439778297,3.6378,4546.1,4546.0,0.328]
[1755439778502,4.5478,4546.1,4546.0,1.435]
[1755439779598,3.2078,4546.1,4546.0,1.435]
[1755439780905,4.5478,4546.1,4546.0,0.5709]
[1755439781298,4.1944,4546.1,4546.0,0.5709]
[1755439781503,4.5478,4546.1,4546.0,0.5709]
[1755439781705,3.7986,4546.1,4545.7,0.3782]
[1755439781900,1.34,4545.9,4545.8,1.1887]
[1755439783510,1.34,4545.9,4545.8,0.8105]
[1755439786113,1.34,4545.9,4545.8,1.435]
[1755439788609,3.2078,4546.1,4546.0,0.5929]
[1755439788807,3.2078,4546.1,4546.0,3.23462843]
[1755439789500,3.78136365,4546.1,4546.0,3.23462843]
[1755439789803,4.55446365,4546.1,4546.0,3.23462843]
[1755439789996,4.79936365,4546.1,4546.0,3.23462843]
[1755439790200,4.2258,4546.1,4546.0,3.23462843]
[1755439790402,4.79937517,4546.1,4546.0,3.23462843]
[1755439791996,5.11937517,4546.1,4546.0,3.23462843]
[1755439793301,4.35857517,4546.1,4545.7,0.5076]
[1755439793501,1.338,4545.8,4545.7,1.2231]
[1755439793702,1.338,4545.8,4545.7,1.4732]
[1755439794406,1.91224516,4545.8,4545.7,1.4732]
[1755439795408,1.59224516,4545.8,4545.7,1.4732]
[1755439795810,0.57424516,4545.8,4545.7,1.4732]
[1755439796307,1.59224516,4545.8,4545.7,1.4732]
[1755439796503,1.74704516,4545.8,4545.7,1.4732]
[1755439796909,1.59224516,4545.8,4545.7,1.4732]
[1755439797112,0.57424516,4545.8,4545.7,1.4732]
[1755439797513,1.59224516,4545.8,4545.7,1.4732]
[1755439797810,1.74704516,4545.8,4545.7,1.4732]
[1755439798413,1.91224516,4545.8,4545.7,1.4732]
[1755439800613,1.59224516,4545.8,4545.7,1.4732]
[1755439802006,1.75744516,4545.8,4545.7,1.4732]
[1755439802211,1.91224516,4545.8,4545.7,1.4732]
[1755439804110,1.15144516,4545.8,4545.0,0.6226]
[1755439804308,0.5772,4545.1,4545.0,1.2231]
[1755439804504,1.338,4545.1,4545.0,1.2231]
[1755439805111,1.338,4545.1,4545.0,0.8504]
[1755439805414,1.338,4545.1,4545.0,1.2231]
[1755439806414,1.338,4545.1,4545.0,1.4732]
[1755439808508,1.338,4545.1,4545.0,0.8428]
[1755439808709,1.338,4545.1,4544.6,4.0881]
[1755439808911,1.338,4545.0,4544.9,0.5927]
[1755439809214,0.5772,4544.6,4544.5,0.8428]
[1755439809515,1.338,4544.6,4544.5,1.4732]
[1755439811016,1.018,4544.6,4544.5,1.4732]
[1755439812112,3.6198,4545.3,4545.2,0.3428]
[1755439812317,4.79971458,4545.3,4545.2,3.23462843]
[1755439812913,4.95451458,4545.3,4545.2,3.23462843]
[1755439813114,5.11971458,4545.3,4545.2,3.23462843]
[1755439813315,1.91191458,4545.3,4545.2,3.23462843]
[1755439813514,1.91181529,4545.3,4545.2,3.23462843]
[1755439814315,5.11961529,4545.3,4545.2,3.23462843]
[1755439816008,5.11961529,4545.3,4545.2,1.1005]
[1755439816311,5.11961529,4545.3,4545.2,0.8504]
[1755439816914,5.11961529,4545.3,4545.2,1.2231]
[1755439820116,1.91181529,4545.3,4545.2,1.2231]
[1755439821120,1.91181529,4545.3,4545.2,1.4829]
[1755439822719,5.11961529,4545.3,4545.2,1.4829]
[1755439823925,5.11961529,4545.3,4545.2,0.8504]
[1755439824619,5.11961529,4545.3,4545.2,1.2358]
[1755439825021,5.11961529,4545.3,4545.2,0.8504]
[1755439825824,5.11961529,4545.3,4545.2,1.2358]
[1755439826130,5.11961529,4545.3,4545.2,1.4956]
[1755439828119,5.11961529,4545.3,4544.9,0.2601]
[1755439828325,1.3459,4545.0,4544.9,1.2177]
[1755439828524,1.3459,4545.0,4544.9,1.4775]
[1755439828823,1.0294,4545.0,4544.9,1.4775]
[1755439829026,3.4513,4545.3,4544.9,1.4775]
[1755439829220,7.8463031,4550.9,4545.2,3.26092843]
[1755439829221,3.2078,4545.8,4545.2,3.26092843]
[1755439829530,3.2078,4546.3,4546.2,1.4775]
[1755439829734,3.78252754,4546.3,4546.2,3.23892843]
[1755439830028,3.2078,4546.3,4546.2,3.23892843]
[1755439830824,3.2078,4547.0,4546.3,0.8947]
[1755439831021,3.2078,4547.0,4546.9,3.23892843]
[1755439831830,3.2078,4547.7,4546.9,2.36612843]
[1755439832033,3.2078,4547.7,4547.6,3.23892843]
[1755439832932,4.2372,4547.7,4547.6,3.23892843]
[1755439834033,4.3988,4547.7,4547.6,3.23892843]
[1755439834235,4.5537,4547.7,4547.6,3.23892843]
[1755439839635,4.3988,4547.7,4547.6,3.23892843]
[1755439840032,4.5537,4547.7,4547.6,1.4775]
[1755439840224,3.9937,4547.7,4546.9,0.0219]
[1755439840432,3.6209,4547.7,4547.6,0.323]
[1755439840634,4.2372,4547.7,4547.6,1.4775]
[1755439840835,4.5537,4547.7,4547.6,1.4775]
[1755439842225,4.5537,4547.7,4547.3,2.01062843]
[1755439842432,1.3459,4547.6,4547.5,0.4228]
[1755439842632,1.191,4547.6,4547.3,1.76142843]
[1755439842839,0.5747,4547.4,4547.3,2.34452843]
[1755439843032,1.3459,4547.4,4547.3,3.23892843]
[1755439843234,1.0294,4547.4,4547.3,3.23892843]
[1755439844433,1.1843,4547.4,4547.3,3.23892843]
[1755439845033,3.2078,4547.7,4547.6,0.5828]
[1755439845333,3.2078,4547.7,4547.6,1.4775]
[1755439846534,4.2372,4547.7,4547.6,1.4775]
[1755439847231,3.2078,4547.7,4547.6,1.4775]
[1755439848337,3.5827,4547.7,4547.6,1.4775]
[1755439848537,3.9929,4547.7,4547.6,1.4775]
[1755439849028,4.2385,4547.7,4547.6,1.4775]
[1755439850928,4.5568,4547.7,4547.6,1.4775]
[1755439851538,3.9929,4547.7,4547.6,1.4775]
[1755439851733,3.9929,4547.7,4547.0,3.4538]
[1755439851936,3.7821,4547.7,4547.6,0.3236]
[1755439852239,4.5568,4547.7,4547.6,1.1978]
[1755439852641,4.5568,4547.7,4547.6,0.8256]
[1755439854033,1.1034,4547.4,4547.3,0.5696]
[1755439854234,1.349,4547.4,4547.3,0.5696]
[1755439854630,1.0307,4547.4,4547.3,1.4577]
[1755439854933,1.349,4547.4,4547.3,0.4026]
[1755439855329,1.349,4547.4,4547.3,0.8256]
[1755439855734,1.1948,4547.4,4547.3,1.4577]
[1755439855939,3.2078,4547.7,4547.3,0.5835]
[1755439856139,4.4026,4547.7,4547.6,1.4577]
[1755439856338,4.5568,4547.7,4547.6,1.4577]
[1755439856641,4.157,4547.7,4547.6,1.4577]
[1755439856831,0.5743,4547.2,4547.1,2.60092843]
[1755439857037,0.9741,4547.2,4547.1,0.8395]
[1755439857237,1.349,4547.2,4547.1,0.8395]
[1755439857542,1.349,4547.2,4547.1,1.0855]
[1755439858040,1.349,4547.2,4547.1,3.21912843]
[1755439858634,1.349,4547.2,4547.1,2.84692843]
[1755439858835,1.349,4547.2,4547.1,3.21912843]
[1755439860547,3.9363,4547.2,4547.1,0.246]
[1755439860840,0.5743,4547.0,4546.6,0.256]
[1755439861144,4.5568,4546.7,4546.6,0.8256]
[1755439861339,4.5568,4546.7,4546.6,0.5696]
[1755439861541,5.13151431,4546.7,4546.6,0.5696]
[1755439862645,1.3496,4546.0,4545.9,1.4577]
[1755439863443,0.4102,4546.0,4545.9,1.4577]
[1755439863653,0.3749,4546.0,4545.9,1.4577]
[1755439863950,1.0307,4546.0,4545.9,0.5835]
[1755439864156,0.7851,4546.0,4545.9,0.5835]
[1755439864351,0.7851,4546.0,4545.9,1.4577]
[1755439865150,3.2078,4546.1,4545.9,1.4577]
[1755439865347,3.2078,4546.1,4546.0,2.34492843]
[1755439865540,3.2078,4546.1,4546.0,3.21912843]
[1755439865744,3.618,4546.1,4546.0,1.4577]
[1755439865950,4.5574,4546.1,4546.0,1.4577]
[1755439866151,4.4026,4546.1,4546.0,1.4577]
[1755439869650,4.2385,4546.1,4546.0,1.4577]
[1755439869857,4.5574,4546.1,4546.0,1.4577]
[1755439870650,4.4026,4546.1,4546.0,1.4577]
[1755439870856,4.5574,4546.1,4546.0,1.4577]
[1755439874460,4.5574,4546.1,4546.0,0.8256]
[1755439876053,3.9929,4546.1,4546.0,1.0855]
[1755439876259,3.9929,4546.1,4546.0,1.4577]
[1755439876459,4.2385,4546.1,4546.0,1.4577]
[1755439877759,1.0307,4546.1,4546.0,1.4577]
[1755439877958,1.349,4546.1,4546.0,1.4577]
[1755439884369,0.3183,4546.1,4546.0,1.4577]
[1755439884667,3.2078,4546.2,4546.1,1.4151]
[1755439884864,4.2453,4546.2,4546.1,1.4151]
[1755439885070,4.3995,4546.2,4546.1,1.4151]
[1755439885264,4.563,4546.2,4546.1,1.4151]
[1755439886366,4.563,4546.2,4546.1,0.7973]
[1755439886566,4.563,4546.2,4546.1,1.4151]
[1755439888465,4.563,4546.2,4546.1,1.1642]
[1755439889173,5.13847555,4546.2,4546.1,1.1642]
[1755439889473,5.13847555,4546.2,4546.1,1.4151]
[1755439889872,5.13847555,4546.2,4546.1,0.7973]
[1755439890469,5.13847555,4546.2,4546.1,1.1642]
[1755439890769,5.13847555,4546.2,4546.1,1.4151]
[1755439891467,4.19737555,4546.2,4546.1,1.4151]
[1755439891672,3.8312,4546.8,4546.1,0.577]
[1755439891873,0.57571139,4546.7,4546.6,3.17652843]
[1755439892166,3.2078,4546.8,4546.7,1.01665]
[1755439892367,3.4484,4547.4,4547.0,0.577]
[1755439892575,0.95814272,4547.3,4547.2,0.577]
[1755439892875,0.57534272,4547.3,4547.2,1.4151]
[1755439893771,0.57534272,4547.3,4547.2,3.17652843]
[1755439894363,0.98944272,4547.3,4547.2,3.17652843]
[1755439894570,1.61284272,4547.3,4547.2,3.17652843]
[1755439895069,1.77634272,4547.3,4547.2,3.17652843]
[1755439895271,1.93054272,4547.3,4547.2,2.80962843]
[1755439895471,1.93054272,4547.3,4547.2,2.57442843]
[1755439895670,1.93054272,4547.3,4547.2,3.17652843]
[1755439895866,1.77634272,4547.3,4547.2,3.17652843]
[1755439896071,1.93054272,4547.3,4547.2,3.17652843]
[1755439897279,1.3552,4547.3,4547.2,3.17652843]
[1755439898479,1.3552,4547.3,4547.2,2.32352843]
[1755439898668,1.3552,4547.3,4547.2,2.55872843]
[1755439898872,1.3552,4547.3,4547.2,2.92562843]
[1755439900079,1.3552,4547.3,4547.2,3.17652843]
[1755439900279,1.3552,4547.3,4547.2,2.55872843]
[1755439900577,1.3552,4547.3,4547.2,2.32352843]
[1755439900979,1.3552,4547.3,4547.2,2.92562843]
[1755439901577,0.8182,4547.3,4547.2,0.3261]
[1755439901878,1.3552,4547.3,4547.2,1.4151]
[1755439903282,1.3552,4547.3,4547.1,1.76142843]
[1755439903479,1.3552,4547.2,4547.1,1.76142843]
[1755439904177,0.5776,4547.0,4546.9,0.236]
[1755439904383,1.3552,4547.0,4546.9,0.236]
[1755439904776,1.3552,4547.0,4546.9,0.3968]
[1755439905080,1.3552,4547.0,4546.9,1.4151]
[1755439905877,0.2458,4547.0,4546.9,1.4151]
[1755439906081,1.0375,4547.0,4546.9,1.4151]
[1755439906272,3.2078,4547.4,4546.9,1.4151]
[1755439906477,4.563,4547.4,4547.3,1.4151]
[1755439906676,5.13712458,4547.4,4547.3,1.4151]
[1755439907184,4.563,4547.4,4547.3,1.4151]
[1755439909184,4.563,4547.4,4547.3,0.7973]
[1755439909382,4.563,4547.4,4547.3,0.5621]
[1755439909777,4.563,4547.4,4547.3,0.803]
[1755439912384,5.13555867,4547.4,4547.3,0.803]
[1755439912585,5.13555867,4547.4,4547.3,1.1813]
[1755439915781,5.13555867,4547.4,4547.3,1.4326]
[1755439917180,5.13555867,4547.4,4547.2,1.76142843]
[1755439917381,1.92945867,4547.3,4547.2,1.76142843]
[1755439917581,1.92945867,4547.3,4547.2,2.00062843]
[1755439919687,1.92945867,4547.3,4547.2,2.95662843]
[1755439920484,1.92945867,4547.3,4547.2,2.57832843]
[1755439920890,1.92945867,4547.3,4547.2,2.33742843]
[1755439922192,1.92945867,4547.3,4547.2,2.57832843]
[1755439922490,1.92945867,4547.3,4547.2,2.95662843]
[1755439922689,1.92945867,4547.3,4547.2,3.20792843]
[1755439927497,1.77485867,4547.3,4547.2,3.20792843]
[1755439928393,1.92945867,4547.3,4547.2,3.20792843]
[1755439941002,1.92945867,4547.3,4547.2,1.4465]
[1755439944008,1.39125867,4547.3,4546.7,0.2402]
[1755439944201,4.5687,4546.9,4546.3,0.2402]
[1755439944404,0.5819,4546.5,4546.4,0.9662]
[1755439944610,1.93345867,4546.5,4546.4,0.9662]
[1755439945004,1.93345867,4546.5,4546.4,1.4552]
[1755439945404,1.3609,4546.5,4546.4,1.4552]
[1755439945804,1.93565318,4546.5,4546.4,1.4552]
[1755439948109,0.57475318,4546.5,4546.4,1.4552]
[1755439948510,1.0328,4546.8,4546.7,0.5794]
[1755439948811,1.9352291,4546.8,4546.7,1.4552]
[1755439952308,0.5743291,4546.8,4546.7,1.4552]
[1755439952507,3.2078,4546.9,4546.7,1.4552]
[1755439952706,3.2078,4546.9,4546.8,1.4552]
[1755439954110,0.3862,4547.1,4546.9,0.8758]
[1755439954314,0.7955,4547.1,4547.0,0.5794]
[1755439954614,1.36953287,4547.1,4547.0,1.4552]
[1755439955008,0.4093,4547.1,4547.0,3.21662843]
[1755439955311,0.2373,4547.1,4547.0,3.21662843]
[1755439955510,0.7955,4547.1,4547.0,3.21662843]
[1755439956012,1.0328,4547.1,4547.0,3.21662843]
[1755439957917,1.60685423,4547.1,4547.0,3.21662843]
[1755439958117,1.0328,4547.1,4547.0,3.21662843]
[1755439958918,1.0328,4547.1,4547.0,1.4552]
[1755439959225,1.60687664,4547.1,4547.0,1.4552]
[1755439959418,1.76237664,4547.1,4547.0,1.4552]
[1755439960113,0.57407664,4547.1,4547.0,1.4552]
[1755439960318,3.2078,4547.4,4547.0,0.5794]
[1755439960519,0.96027579,4547.3,4547.2,0.5794]
[1755439960818,1.60687579,4547.3,4547.2,1.4552]
[1755439961019,1.36957579,4547.3,4547.2,1.4552]
[1755439963226,0.81137579,4547.3,4547.2,1.4552]
[1755439963622,0.57407579,4547.3,4547.2,1.4552]
[1755439965225,0.6235,4547.8,4547.2,0.5794]
[1755439965426,0.57392361,4547.7,4547.6,2.34082843]
[1755439965626,0.57392361,4547.7,4547.6,3.21662843]
[1755439966221,1.36942361,4547.7,4547.6,3.21662843]
[1755439966426,1.76132361,4547.7,4547.6,3.21662843]
[1755439966627,0.98322361,4547.7,4547.6,3.21662843]
[1755439966822,1.60672361,4547.7,4547.6,3.21662843]
[1755439967423,1.76132361,4547.7,4547.6,3.21662843]
[1755439968730,1.93392361,4547.7,4547.6,3.21662843]
[1755439968920,1.93392361,4547.7,4547.6,0.1721]
[1755439969124,1.93392361,4547.7,4547.6,0.4211]
[1755439970536,0.5729,4547.1,4547.0,0.8094]
[1755439970728,1.3501,4547.1,4547.0,1.4241]
[1755439972933,1.3501,4547.1,4547.0,0.4085]
[1755439973236,1.3501,4547.1,4547.0,1.1798]
[1755439973434,1.3501,4547.1,4547.0,1.4241]
[1755439973630,0.4071,4547.1,4547.0,1.4241]
[1755439974034,0.7939,4547.1,4547.0,1.4241]
[1755439974234,1.0298,4547.1,4547.0,1.4241]
[1755439974732,3.2078,4547.4,4547.1,0.6192]
[1755439974931,3.9352,4547.4,4547.3,0.5604]
[1755439975141,4.51189631,4547.4,4547.3,1.4241]
[1755439975435,5.13459631,4547.4,4547.3,1.4241]
[1755439975839,3.78449631,4547.4,4547.3,3.18552843]
[1755439976336,4.57839631,4547.4,4547.3,3.18552843]
[1755439976839,4.81429631,4547.4,4547.3,3.18552843]
[1755439980345,1.1956,4547.1,4547.0,0.8049]
[1755439980533,1.3501,4547.1,4547.0,1.4241]
[1755439982738,1.3501,4547.1,4547.0,0.774]
[1755439982944,1.3501,4547.1,4546.8,0.1595]
[1755439982945,0.8088,4546.9,4546.8,0.1595]
[1755439983143,0.5729,4546.9,4546.8,0.8096]
[1755439983344,0.5729,4546.9,4546.8,1.4241]
[1755439983838,1.3501,4546.9,4546.8,1.4241]
[1755439985948,1.1956,4546.9,4546.8,1.0539]
[1755439986144,1.3501,4546.9,4546.8,1.4241]
[1755439988348,3.5946,4547.4,4546.8,1.1751]
[1755439988654,1.92755825,4547.3,4547.2,1.4241]
[1755439993455,1.77305825,4547.3,4547.2,1.4241]
[1755439993652,1.60725825,4547.3,4547.2,1.4241]
[1755439993851,1.37135825,4547.3,4547.2,1.4241]
[1755439994050,0.57745825,4547.3,4547.2,1.4241]
[1755439995760,1.37135825,4547.3,4547.2,1.4241]
[1755439996053,1.60725825,4547.3,4547.2,1.4241]
[1755439997851,1.60725825,4547.3,4546.6,1.76142843]
[1755439997852,1.77305825,4547.3,4546.6,1.76142843]
[1755439998052,3.7845,4546.7,4546.2,0.2386]
[1755439998247,1.3638,4546.3,4546.2,0.2386]
[1755439998453,1.3638,4546.3,4545.4,3.2078]
[1755439998454,1.94125825,4546.3,4545.4,3.2078]
[1755439998656,3.939,4546.0,4545.9,0.5895]
[1755439998857,4.51645825,4546.0,4545.9,1.4445]
[1755439999159,5.14905825,4546.0,4545.9,1.4445]
[1755440001061,4.5716,4546.0,4545.9,1.4445]
[1755440004858,4.5716,4546.0,4545.9,0.2386]
[1755440005259,4.5716,4546.0,4545.9,0.4032]
[1755440005464,4.5716,4546.0,4545.9,0.818]
[1755440005663,0.4157,4545.1,4545.0,1.4445]
[1755440005862,1.3638,4545.1,4545.0,1.4445]
[1755440007266,1.3638,4545.1,4545.0,0.818]
[1755440008766,1.3638,4545.1,4545.0,1.1888]
[1755440009658,1.3638,4545.1,4545.0,0.818]
[1755440011362,1.3638,4545.1,4545.0,1.1888]
[1755440012165,1.3638,4545.1,4545.0,1.4445]
[1755440013161,3.3715,4545.4,4545.3,0.1692]
[1755440013367,3.8756,4545.4,4545.3,3.20592843]
[1755440013567,4.1911,4545.4,4545.3,3.20592843]
[1755440014060,4.5716,4545.4,4545.3,3.20592843]
[1755440015073,4.5716,4545.4,4545.3,0.818]
[1755440015569,4.5716,4545.4,4545.3,0.4032]
[1755440016667,4.5716,4545.4,4545.3,0.2386]
[1755440017063,0.7871,4545.3,4544.7,1.76142843]
[1755440017271,1.3638,4544.7,4544.6,1.4445]
[1755440017775,1.0483,4544.7,4544.6,1.4445]
[1755440018069,0.7962,4544.7,4544.6,1.4445]
[1755440019874,1.0483,4544.7,4544.6,1.4445]
[1755440020268,0.9572,4544.7,4544.6,1.4445]
[1755440020476,1.3638,4544.7,4544.6,1.4445]
[1755440021473,1.0483,4544.7,4544.6,1.4445]
[1755440021674,1.3638,4544.7,4544.6,1.4445]
[1755440023375,3.2078,4544.9,4544.6,0.5895]
[1755440023577,0.7962,4545.0,4544.9,1.4445]
[1755440024182,3.6235,4545.4,4545.3,0.5895]
[1755440024379,3.8756,4545.4,4545.3,3.20592843]
[1755440024579,4.1911,4545.4,4545.3,3.20592843]
[1755440024878,4.5716,4545.4,4545.3,3.20592843]
[1755440026088,5.14912979,4545.4,4545.3,3.20592843]
[1755440027991,4.51652979,4545.4,4545.3,0.3313]
[1755440028291,4.51652979,4545.4,4545.3,1.2061]
[1755440028688,5.13502979,4545.4,4545.3,1.2061]
[1755440031194,5.13502979,4545.4,4545.3,0.8327]
[1755440034599,1.3279,4544.9,4544.8,2.96752843]
[1755440034798,5.11322979,4544.9,4544.8,3.21992843]
[1755440035896,4.95792979,4544.9,4544.8,3.21992843]
[1755440036897,5.11322979,4544.9,4544.8,3.21992843]
[1755440040596,4.33942979,4544.9,4544.8,0.3313]
[1755440040797,4.95792979,4544.9,4544.8,1.4585]
[1755440041800,4.95792979,4544.9,4544.8,3.21992843]
[1755440043104,4.18002979,4544.9,4544.8,3.21992843]
[1755440043805,4.54202979,4544.9,4544.8,3.21992843]
[1755440044004,4.79852979,4544.9,4544.8,3.21992843]
[1755440044199,5.11322979,4544.9,4544.8,3.21992843]
[1755440044396,4.95792979,4544.9,4544.0,0.022]
[1755440044604,1.74532979,4544.8,4544.7,0.3313]
[1755440044799,1.90542979,4544.8,4544.7,0.8327]
[1755440045109,0.3947,4544.3,4544.2,2.71852843]
[1755440045303,1.0132,4544.3,4544.2,2.97742843]
[1755440045904,1.0132,4544.3,4544.2,3.21992843]
[1755440046500,1.3279,4544.3,4544.2,3.21992843]
[1755440047805,1.1726,4544.3,4544.2,3.21992843]
[1755440048501,1.3279,4544.3,4544.2,3.21992843]
[1755440050805,1.0132,4544.3,4544.2,3.21992843]
[1755440050998,0.1553,4544.7,4544.2,2.34512843]
[1755440051308,1.0132,4544.5,4544.4,1.4585]
[1755440051807,1.3279,4544.5,4544.4,1.4585]
[1755440067427,3.2078,4544.9,4544.8,1.4464]
[1755440067628,3.78639839,4544.9,4544.8,3.20782843]
[1755440067927,4.82709839,4544.9,4544.8,3.20782843]
[1755440068623,4.82709839,4544.9,4544.8,1.4464]
[1755440068823,4.51759839,4544.9,4544.6,0.2418]
[1755440069126,1.3597,4544.7,4544.6,0.2418]
[1755440069326,1.93829839,4544.7,4544.6,0.8192]
[1755440069722,1.93829839,4544.7,4544.6,1.1926]
[1755440069922,1.93829839,4544.7,4544.6,1.4464]